fUSD/lending_fUSD_20260503
["ID","MTS","AMOUNT","RATE_DAILY","PERIOD"]
[421469500,1777738249000,-500.0,0.00032328,2]
[421469493,1777738249000,-206.73808739,0.00032328,2]
[421469502,1777738249000,-156.4777943,0.00032328,2]
[421469492,1777738249000,-500.0,0.00032328,2]
[421469499,1777738249000,-500.0,0.00032328,2]
[421469506,1777738249000,-381.15111645,0.00032328,2]
[421469508,1777738249000,-753.28,0.00032328,2]
[421469507,1777738249000,-295.16152001,0.00032328,2]
[421469509,1777738249000,-500.0,0.00032328,2]
[421469515,1777738249000,-728.83,0.00032328,2]
[421469513,1777738249000,-500.0,0.00032328,2]
[421469512,1777738249000,-500.0,0.00032328,2]
[421469516,1777738249000,-36411.49,0.00032328,2]
[421469510,1777738249000,-183.82989923,0.00032328,2]
[421469514,1777738249000,-500.0,0.00032328,2]
[421469511,1777738249000,-500.0,0.00032328,2]
[421469518,1777738249000,-500.0,0.00032328,2]
[421469519,1777738249000,-806.17,0.00032328,2]
[421469520,1777738249000,-2792.04,0.00032328,2]
[421469517,1777738249000,-500.0,0.00032328,2]
[421469463,1777738249000,-500.0,0.00032328,2]
[421469495,1777738249000,-666.15,0.00032328,2]
[421469505,1777738249000,-800.92,0.00032328,2]
[421469522,1777738249000,-500.0,0.00032328,2]
[421469482,1777738249000,-500.0,0.00032328,2]
[421469497,1777738249000,-684.42,0.00032328,2]
[421469462,1777738249000,-500.0,0.00032328,2]
[421469457,1777738249000,-500.0,0.00032328,2]
[421469460,1777738249000,-500.0,0.00032328,2]
[421469459,1777738249000,-164.93741166,0.00032328,2]
[421469472,1777738249000,-500.0,0.00032328,2]
[421469469,1777738249000,-500.0,0.00032328,2]
[421469479,1777738249000,-504.14,0.00032328,2]
[421469475,1777738249000,-519.12,0.00032328,2]
[421469470,1777738249000,-884.79,0.00032328,2]
[421469468,1777738249000,-500.0,0.00032328,2]
[421469480,1777738249000,-500.0,0.00032328,2]
[421469474,1777738249000,-221.31329423,0.00032328,2]
[421469478,1777738249000,-523.44,0.00032328,2]
[421469456,1777738249000,-156.4221537,0.00032328,2]
[421469476,1777738249000,-500.0,0.00032328,2]
[421469489,1777738249000,-812.98,0.00032328,2]
[421469487,1777738249000,-724.96,0.00032328,2]
[421469490,1777738249000,-635.28,0.00032328,2]
[421469483,1777738249000,-500.0,0.00032328,2]
[421469471,1777738249000,-500.0,0.00032328,2]
[421469485,1777738249000,-500.0,0.00032328,2]
[421469488,1777738249000,-500.0,0.00032328,2]
[421469491,1777738249000,-658.51,0.00032328,2]
[421469484,1777738249000,-500.0,0.00032328,2]
[421469486,1777738249000,-500.0,0.00032328,2]
[421469477,1777738249000,-1111.98,0.00032328,2]
[421469473,1777738249000,-500.0,0.00032328,2]
[421469481,1777738249000,-500.0,0.00032328,2]
[421469560,1777738250000,-500.0,0.00032328,2]
[421469562,1777738250000,-500.0,0.00032328,2]
[421469559,1777738250000,-500.0,0.00032328,2]
[421469563,1777738250000,-426.3037428,0.00032328,2]
[421469555,1777738250000,-500.0,0.00032328,2]
[421469567,1777738250000,-243.43694254,0.00032328,2]
[421469566,1777738250000,-151.0,0.00032328,7]
[421469556,1777738250000,-500.0,0.00032328,2]
[421469557,1777738250000,-500.0,0.00032328,2]
[421469558,1777738250000,-151.0,0.00032328,7]
[421469568,1777738250000,-500.0,0.00032328,2]
[421469565,1777738250000,-500.0,0.00032328,2]
[421469571,1777738250000,-2059.86,0.00032328,2]
[421469564,1777738250000,-355.80553856,0.00032328,2]
[421469580,1777738250000,-500.0,0.00032328,2]
[421469570,1777738250000,-500.0,0.00032328,2]
[421469569,1777738250000,-500.0,0.00032328,2]
[421469572,1777738250000,-500.0,0.00032328,2]
[421469575,1777738250000,-500.0,0.00032328,2]
[421469573,1777738250000,-500.0,0.00032328,2]
[421469579,1777738250000,-693.96,0.00032328,2]
[421469574,1777738250000,-500.0,0.00032328,2]
[421469578,1777738250000,-12694.74,0.00032328,2]
[421469577,1777738250000,-500.0,0.00032328,2]
[421469576,1777738250000,-500.0,0.00032328,2]
[421469550,1777738250000,-500.0,0.00032328,2]
[421469561,1777738250000,-500.0,0.00032328,2]
[421469551,1777738250000,-500.0,0.00032328,2]
[421469538,1777738250000,-880.44,0.00032328,2]
[421469547,1777738250000,-190.7478228,0.00032328,2]
[421469581,1777738250000,-348.03728457,0.00032328,2]
[421469526,1777738250000,-451.45952697,0.00032328,2]
[421469523,1777738250000,-500.0,0.00032328,2]
[421469527,1777738250000,-500.0,0.00032328,2]
[421469525,1777738250000,-500.0,0.00032328,2]
[421469524,1777738250000,-500.0,0.00032328,2]
[421469529,1777738250000,-500.0,0.00032328,2]
[421469530,1777738250000,-500.0,0.00032328,2]
[421469534,1777738250000,-537.0,0.00032328,2]
[421469539,1777738250000,-1197.94,0.00032328,2]
[421469536,1777738250000,-518.09975268,0.00032328,2]
[421469533,1777738250000,-920.07,0.00032328,2]
[421469531,1777738250000,-500.0,0.00032328,2]
[421469537,1777738250000,-500.0,0.00032328,2]
[421469532,1777738250000,-500.0,0.00032328,2]
[421469535,1777738250000,-3599.4,0.00032328,2]
[421469540,1777738250000,-19976.45,0.00032328,2]
[421469552,1777738250000,-500.0,0.00032328,2]
[421469553,1777738250000,-500.0,0.00032328,2]
[421469542,1777738250000,-500.0,0.00032328,2]
[421469541,1777738250000,-500.0,0.00032328,2]
[421469554,1777738250000,-500.0,0.00032328,2]
[421469543,1777738250000,-500.0,0.00032328,2]
[421469544,1777738250000,-500.0,0.00032328,2]
[421469545,1777738250000,-343.86960167,0.00032328,2]
[421469546,1777738250000,-349.67602487,0.00032328,2]
[421469548,1777738250000,-500.0,0.00032328,2]
[421469549,1777738250000,-151.0,0.00032328,7]
[421469584,1777738250000,-500.0,0.00032328,2]
[421469528,1777738250000,-4576.64,0.00032328,2]
[421469586,1777738250000,-500.0,0.00032328,2]
[421469622,1777738250000,-500.0,0.00032328,2]
[421469621,1777738250000,-500.0,0.00032328,2]
[421469616,1777738250000,-500.0,0.00032328,2]
[421469623,1777738250000,-500.0,0.00032328,2]
[421469619,1777738250000,-500.0,0.00032328,2]
[421469615,1777738250000,-500.0,0.00032328,2]
[421469617,1777738250000,-500.0,0.00032328,2]
[421469618,1777738250000,-500.0,0.00032328,2]
[421469620,1777738250000,-500.0,0.00032328,2]
[421469638,1777738250000,-500.0,0.00032328,2]
[421469637,1777738250000,-500.0,0.00032328,2]
[421469627,1777738250000,-500.0,0.00032328,2]
[421469626,1777738250000,-500.0,0.00032328,2]
[421469628,1777738250000,-500.0,0.00032328,2]
[421469629,1777738250000,-500.0,0.00032328,2]
[421469630,1777738250000,-500.0,0.00032328,2]
[421469633,1777738250000,-500.0,0.00032328,2]
[421469634,1777738250000,-500.0,0.00032328,2]
[421469632,1777738250000,-500.0,0.00032328,2]
[421469631,1777738250000,-500.0,0.00032328,2]
[421469643,1777738250000,-2298.37,0.00032328,2]
[421469636,1777738250000,-500.0,0.00032328,2]
[421469635,1777738250000,-500.0,0.00032328,2]
[421469640,1777738250000,-151.0,0.00032328,7]
[421469641,1777738250000,-732.98,0.00032328,2]
[421469642,1777738250000,-500.0,0.00032328,2]
[421469593,1777738250000,-151.0,0.00032328,7]
[421469613,1777738250000,-500.0,0.00032328,2]
[421469625,1777738250000,-801.36,0.00032328,2]
[421469639,1777738250000,-151.0,0.00032328,7]
[421469614,1777738250000,-500.0,0.00032328,2]
[421469624,1777738250000,-500.0,0.00032328,2]
[421469590,1777738250000,-1599.33,0.00032328,2]
[421469594,1777738250000,-500.0,0.00032328,2]
[421469583,1777738250000,-500.0,0.00032328,2]
[421469582,1777738250000,-901.46,0.00032328,2]
[421469588,1777738250000,-500.0,0.00032328,2]
[421469585,1777738250000,-500.0,0.00032328,2]
[421469592,1777738250000,-500.0,0.00032328,2]
[421469587,1777738250000,-500.0,0.00032328,2]
[421469589,1777738250000,-500.0,0.00032328,2]
[421469596,1777738250000,-500.0,0.00032328,2]
[421469598,1777738250000,-500.0,0.00032328,2]
[421469595,1777738250000,-500.0,0.00032328,2]
[421469597,1777738250000,-500.0,0.00032328,2]
[421469591,1777738250000,-214.3846014,0.00032328,2]
[421469608,1777738250000,-578.54,0.00032328,2]
[421469610,1777738250000,-565.2138546,0.00032328,2]
[421469599,1777738250000,-151.0,0.00032328,7]
[421469603,1777738250000,-151.0,0.00032328,7]
[421469609,1777738250000,-500.0,0.00032328,2]
[421469604,1777738250000,-500.0,0.00032328,2]
[421469605,1777738250000,-603.63,0.00032328,2]
[421469606,1777738250000,-500.0,0.00032328,2]
[421469602,1777738250000,-902.13,0.00032328,2]
[421469611,1777738250000,-500.0,0.00032328,2]
[421469600,1777738250000,-500.0,0.00032328,2]
[421469601,1777738250000,-500.0,0.00032328,2]
[421469612,1777738250000,-500.0,0.00032328,2]
[421469607,1777738250000,-154.97301334,0.00032328,2]
[421469687,1777738251000,-208.95606675,0.00032328,2]
[421469690,1777738251000,-500.0,0.00032328,2]
[421469688,1777738251000,-500.0,0.00032328,2]
[421469684,1777738251000,-500.0,0.00032328,2]
[421469693,1777738251000,-500.0,0.00032328,2]
[421469694,1777738251000,-500.0,0.00032328,2]
[421469672,1777738251000,-772.17,0.00032328,2]
[421469682,1777738251000,-519.59,0.00032328,2]
[421469675,1777738251000,-500.0,0.00032328,2]
[421469678,1777738251000,-500.0,0.00032328,2]
[421469676,1777738251000,-151.0,0.00032328,7]
[421469692,1777738251000,-500.0,0.00032328,2]
[421469683,1777738251000,-500.0,0.00032328,2]
[421469686,1777738251000,-800.53,0.00032328,2]
[421469704,1777738251000,-613.49,0.00032328,2]
[421469685,1777738251000,-500.0,0.00032328,2]
[421469691,1777738251000,-699.76,0.00032328,2]
[421469696,1777738251000,-151.0,0.00032328,7]
[421469708,1777738251000,-500.0,0.00032328,2]
[421469702,1777738251000,-520.28,0.00032328,2]
[421469706,1777738251000,-500.0,0.00032328,2]
[421469695,1777738251000,-500.0,0.00032328,2]
[421469705,1777738251000,-500.0,0.00032328,2]
[421469698,1777738251000,-151.0,0.00032328,7]
[421469699,1777738251000,-867.68,0.00032328,2]
[421469707,1777738251000,-500.0,0.00032328,2]
[421469700,1777738251000,-776.41,0.00032328,2]
[421469701,1777738251000,-270.549776,0.00032328,7]
[421469674,1777738251000,-151.0,0.00032328,7]
[421469689,1777738251000,-2511.16,0.00032328,2]
[421469681,1777738251000,-500.0,0.00032328,2]
[421469649,1777738251000,-500.0,0.00032328,2]
[421469673,1777738251000,-500.0,0.00032328,2]
[421469647,1777738251000,-500.0,0.00032328,2]
[421469697,1777738251000,-500.0,0.00032328,2]
[421469645,1777738251000,-500.0,0.00032328,2]
[421469651,1777738251000,-500.0,0.00032328,2]
[421469653,1777738251000,-500.0,0.00032328,2]
[421469644,1777738251000,-3387.89,0.00032328,2]
[421469650,1777738251000,-830.29,0.00032328,2]
[421469652,1777738251000,-500.0,0.00032328,2]
[421469646,1777738251000,-643.32,0.00032328,2]
[421469655,1777738251000,-500.0,0.00032328,2]
[421469666,1777738251000,-500.0,0.00032328,2]
[421469654,1777738251000,-500.0,0.00032328,2]
[421469656,1777738251000,-500.0,0.00032328,2]
[421469667,1777738251000,-500.0,0.00032328,2]
[421469658,1777738251000,-500.0,0.00032328,2]
[421469661,1777738251000,-500.0,0.00032328,2]
[421469660,1777738251000,-517.02481716,0.00032328,2]
[421469665,1777738251000,-500.0,0.00032328,2]
[421469659,1777738251000,-500.0,0.00032328,2]
[421469657,1777738251000,-500.0,0.00032328,2]
[421469662,1777738251000,-500.0,0.00032328,2]
[421469664,1777738251000,-500.0,0.00032328,2]
[421469663,1777738251000,-500.0,0.00032328,2]
[421469669,1777738251000,-688.56,0.00032328,2]
[421469670,1777738251000,-500.0,0.00032328,2]
[421469668,1777738251000,-500.0,0.00032328,2]
[421469679,1777738251000,-151.0,0.00032328,7]
[421469680,1777738251000,-500.0,0.00032328,2]
[421469671,1777738251000,-500.0,0.00032328,2]
[421469677,1777738251000,-500.0,0.00032328,2]
[421469703,1777738251000,-500.0,0.00032328,2]
[421469648,1777738251000,-500.0,0.00032328,2]
[421469713,1777738251000,-926.86,0.00032328,2]
[421469740,1777738251000,-500.0,0.00032328,2]
[421469738,1777738251000,-500.0,0.00032328,2]
[421469747,1777738251000,-948.77,0.00032328,2]
[421469758,1777738251000,-235.93573,0.00032328,7]
[421469749,1777738251000,-500.0,0.00032328,2]
[421469751,1777738251000,-705.16,0.00032328,2]
[421469753,1777738251000,-235.93573,0.00032328,7]
[421469757,1777738251000,-235.93573,0.00032328,7]
[421469748,1777738251000,-627.62,0.00032328,2]
[421469750,1777738251000,-500.0,0.00032328,2]
[421469754,1777738251000,-955.49,0.00032328,2]
[421469755,1777738251000,-235.93573,0.00032328,7]
[421469752,1777738251000,-500.0,0.00032328,2]
[421469756,1777738251000,-500.0,0.00032328,2]
[421469746,1777738251000,-500.0,0.00032328,2]
[421469759,1777738251000,-500.0,0.00032328,2]
[421469762,1777738251000,-500.0,0.00032328,2]
[421469761,1777738251000,-235.93573,0.00032328,7]
[421469763,1777738251000,-1216.39,0.00032328,2]
[421469767,1777738251000,-378.78957251,0.00032328,2]
[421469774,1777738251000,-500.0,0.00032328,2]
[421469771,1777738251000,-662.84,0.00032328,2]
[421469764,1777738251000,-235.93573,0.00032328,7]
[421469770,1777738251000,-578.95,0.00032328,2]
[421469765,1777738251000,-235.93573,0.00032328,7]
[421469768,1777738251000,-500.0,0.00032328,2]
[421469769,1777738251000,-852.88,0.00032328,2]
[421469772,1777738251000,-500.0,0.00032328,2]
[421469773,1777738251000,-500.0,0.00032328,2]
[421469717,1777738251000,-491.323884,0.00032328,2]
[421469760,1777738251000,-235.93573,0.00032328,7]
[421469736,1777738251000,-500.0,0.00032328,2]
[421469766,1777738251000,-500.0,0.00032328,2]
[421469743,1777738251000,-5151.24,0.00032328,2]
[421469742,1777738251000,-500.0,0.00032328,2]
[421469710,1777738251000,-500.0,0.00032328,2]
[421469715,1777738251000,-500.0,0.00032328,2]
[421469712,1777738251000,-500.0,0.00032328,2]
[421469709,1777738251000,-500.0,0.00032328,2]
[421469714,1777738251000,-500.0,0.00032328,2]
[421469718,1777738251000,-500.0,0.00032328,2]
[421469716,1777738251000,-500.0,0.00032328,2]
[421469720,1777738251000,-638.06151498,0.00032328,2]
[421469719,1777738251000,-391.49215733,0.00032328,2]
[421469721,1777738251000,-283.53690979,0.00032328,2]
[421469732,1777738251000,-500.0,0.00032328,2]
[421469722,1777738251000,-500.0,0.00032328,2]
[421469725,1777738251000,-500.0,0.00032328,2]
[421469723,1777738251000,-701.38,0.00032328,2]
[421469711,1777738251000,-500.0,0.00032328,2]
[421469724,1777738251000,-500.0,0.00032328,2]
[421469726,1777738251000,-500.0,0.00032328,2]
[421469739,1777738251000,-500.0,0.00032328,2]
[421469735,1777738251000,-3171.81,0.00032328,2]
[421469737,1777738251000,-500.0,0.00032328,2]
[421469745,1777738251000,-500.0,0.00032328,2]
[421469744,1777738251000,-500.0,0.00032328,2]
[421469734,1777738251000,-500.0,0.00032328,2]
[421469731,1777738251000,-500.0,0.00032328,2]
[421469727,1777738251000,-616.49,0.00032328,2]
[421469729,1777738251000,-764.18,0.00032328,2]
[421469733,1777738251000,-500.0,0.00032328,2]
[421469741,1777738251000,-500.0,0.00032328,2]
[421469728,1777738251000,-500.0,0.00032328,2]
[421469730,1777738251000,-500.0,0.00032328,2]
[421469816,1777738252000,-500.0,0.00032373,5]
[421469803,1777738252000,-500.0,0.00032328,2]
[421469802,1777738252000,-500.0,0.00032328,2]
[421469807,1777738252000,-500.0,0.00032328,2]
[421469811,1777738252000,-500.0,0.00032328,2]
[421469813,1777738252000,-1558.0,0.00032329,15]
[421469804,1777738252000,-500.0,0.00032328,2]
[421469812,1777738252000,-500.0,0.00032328,2]
[421469810,1777738252000,-500.0,0.00032328,2]
[421469814,1777738252000,-500.0,0.00032373,5]
[421469815,1777738252000,-500.0,0.00032373,5]
[421469806,1777738252000,-500.0,0.00032328,2]
[421469821,1777738252000,-606.18239602,0.00032382,2]
[421469817,1777738252000,-500.0,0.00032373,5]
[421469820,1777738252000,-606.18239602,0.00032382,2]
[421469819,1777738252000,-606.18239602,0.00032382,2]
[421469822,1777738252000,-606.18239602,0.00032382,2]
[421469832,1777738252000,-500.0,0.00032383,2]
[421469831,1777738252000,-500.0,0.00032383,2]
[421469823,1777738252000,-606.18239602,0.00032382,2]
[421469827,1777738252000,-500.0,0.00032383,2]
[421469833,1777738252000,-500.0,0.00032383,2]
[421469805,1777738252000,-502.00313877,0.00032328,2]
[421469828,1777738252000,-500.0,0.00032383,2]
[421469818,1777738252000,-500.0,0.00032373,5]
[421469801,1777738252000,-712.57,0.00032328,2]
[421469786,1777738252000,-714.84,0.00032328,2]
[421469797,1777738252000,-713.23,0.00032328,2]
[421469826,1777738252000,-606.18239602,0.00032382,2]
[421469775,1777738252000,-246.55469964,0.00032328,2]
[421469778,1777738252000,-500.0,0.00032328,2]
[421469780,1777738252000,-535.49116878,0.00032328,2]
[421469777,1777738252000,-685.03,0.00032328,2]
[421469784,1777738252000,-208.68177871,0.00032328,2]
[421469776,1777738252000,-500.0,0.00032328,2]
[421469782,1777738252000,-500.0,0.00032328,2]
[421469781,1777738252000,-500.0,0.00032328,2]
[421469783,1777738252000,-3075.01,0.00032328,2]
[421469779,1777738252000,-500.0,0.00032328,2]
[421469785,1777738252000,-500.0,0.00032328,2]
[421469800,1777738252000,-500.0,0.00032328,2]
[421469796,1777738252000,-510.0,0.00032328,2]
[421469787,1777738252000,-500.0,0.00032328,2]
[421469789,1777738252000,-500.0,0.00032328,2]
[421469790,1777738252000,-644.8,0.00032328,2]
[421469793,1777738252000,-500.0,0.00032328,2]
[421469791,1777738252000,-500.0,0.00032328,2]
[421469794,1777738252000,-632.13571895,0.00032328,2]
[421469795,1777738252000,-500.0,0.00032328,2]
[421469792,1777738252000,-310.92192894,0.00032328,2]
[421469798,1777738252000,-527.59,0.00032328,2]
[421469808,1777738252000,-500.0,0.00032328,2]
[421469809,1777738252000,-500.0,0.00032328,2]
[421469799,1777738252000,-799.47,0.00032328,2]
[421469788,1777738252000,-500.0,0.00032328,2]
[421469825,1777738252000,-606.18239602,0.00032382,2]
[421469835,1777738252000,-500.0,0.00032383,2]
[421469830,1777738252000,-736.97,0.00032383,2]
[421469866,1777738252000,-572.34,0.00032383,2]
[421469875,1777738252000,-605.34344819,0.00032383,2]
[421469864,1777738252000,-500.0,0.00032383,2]
[421469868,1777738252000,-950.75,0.00032383,2]
[421469874,1777738252000,-647.22,0.00032383,2]
[421469865,1777738252000,-500.0,0.00032383,2]
[421469867,1777738252000,-500.0,0.00032383,2]
[421469871,1777738252000,-5967.71,0.00032383,2]
[421469870,1777738252000,-500.0,0.00032383,2]
[421469869,1777738252000,-326.73529879,0.00032383,2]
[421469873,1777738252000,-500.0,0.00032383,2]
[421469876,1777738252000,-500.0,0.00032383,2]
[421469877,1777738252000,-500.0,0.00032383,2]
[421469881,1777738252000,-500.0,0.00032383,2]
[421469887,1777738252000,-500.0,0.00032383,2]
[421469880,1777738252000,-775.96,0.00032383,2]
[421469878,1777738252000,-500.0,0.00032383,2]
[421469885,1777738252000,-500.0,0.00032383,2]
[421469884,1777738252000,-884.79,0.00032383,2]
[421469882,1777738252000,-418.15527128,0.00032383,2]
[421469879,1777738252000,-523.64,0.00032383,2]
[421469883,1777738252000,-500.0,0.00032383,2]
[421469886,1777738252000,-500.0,0.00032383,2]
[421469888,1777738252000,-519.12,0.00032383,2]
[421469829,1777738252000,-500.0,0.00032383,2]
[421469861,1777738252000,-386.17744194,0.00032383,2]
[421469858,1777738252000,-500.0,0.00032383,2]
[421469872,1777738252000,-500.0,0.00032383,2]
[421469860,1777738252000,-500.0,0.00032383,2]
[421469824,1777738252000,-606.18239602,0.00032382,2]
[421469853,1777738252000,-609.19086062,0.00032383,2]
[421469845,1777738252000,-500.0,0.00032383,2]
[421469847,1777738252000,-575.53646158,0.00032383,2]
[421469846,1777738252000,-733.4,0.00032383,2]
[421469834,1777738252000,-500.0,0.00032383,2]
[421469838,1777738252000,-500.0,0.00032383,2]
[421469840,1777738252000,-500.0,0.00032383,2]
[421469844,1777738252000,-500.0,0.00032383,2]
[421469839,1777738252000,-500.0,0.00032383,2]
[421469836,1777738252000,-500.0,0.00032383,2]
[421469841,1777738252000,-620.55,0.00032383,2]
[421469842,1777738252000,-500.0,0.00032383,2]
[421469837,1777738252000,-500.0,0.00032383,2]
[421469856,1777738252000,-740.61,0.00032383,2]
[421469862,1777738252000,-678.03,0.00032383,2]
[421469843,1777738252000,-500.0,0.00032383,2]
[421469859,1777738252000,-865.8,0.00032383,2]
[421469857,1777738252000,-797.0,0.00032383,2]
[421469863,1777738252000,-500.0,0.00032383,2]
[421469854,1777738252000,-500.0,0.00032383,2]
[421469855,1777738252000,-500.0,0.00032383,2]
[421469850,1777738252000,-500.0,0.00032383,2]
[421469851,1777738252000,-500.0,0.00032383,2]
[421469849,1777738252000,-500.0,0.00032383,2]
[421469848,1777738252000,-503.93406826,0.00032383,2]
[421469852,1777738252000,-500.0,0.00032383,2]
[421469928,1777738253000,-500.0,0.00032383,2]
[421469929,1777738253000,-500.0,0.00032383,2]
[421469935,1777738253000,-500.0,0.00032383,2]
[421469926,1777738253000,-500.0,0.00032383,2]
[421469927,1777738253000,-500.0,0.00032383,2]
[421469920,1777738253000,-36411.49,0.00032383,2]
[421469924,1777738253000,-806.17,0.00032383,2]
[421469918,1777738253000,-500.0,0.00032383,2]
[421469914,1777738253000,-753.28,0.00032383,2]
[421469923,1777738253000,-500.0,0.00032383,2]
[421469932,1777738253000,-500.0,0.00032383,2]
[421469925,1777738253000,-2792.04,0.00032383,2]
[421469934,1777738253000,-489.33525659,0.00032383,2]
[421469940,1777738253000,-500.0,0.00032383,2]
[421469931,1777738253000,-500.0,0.00032383,2]
[421469933,1777738253000,-4576.64,0.00032383,2]
[421469939,1777738253000,-3599.4,0.00032383,2]
[421469942,1777738253000,-1197.94,0.00032383,2]
[421469937,1777738253000,-920.07,0.00032383,2]
[421469943,1777738253000,-19976.45,0.00032383,2]
[421469946,1777738253000,-500.0,0.00032383,2]
[421469941,1777738253000,-880.44,0.00032383,2]
[421469938,1777738253000,-537.0,0.00032383,2]
[421469936,1777738253000,-500.0,0.00032383,2]
[421469945,1777738253000,-500.0,0.00032383,2]
[421469915,1777738253000,-500.0,0.00032383,2]
[421469930,1777738253000,-500.0,0.00032383,2]
[421469922,1777738253000,-728.83,0.00032383,2]
[421469891,1777738253000,-523.44,0.00032383,2]
[421469919,1777738253000,-500.0,0.00032383,2]
[421469889,1777738253000,-500.0,0.00032383,2]
[421469890,1777738253000,-1111.98,0.00032383,2]
[421469892,1777738253000,-504.14,0.00032383,2]
[421469896,1777738253000,-500.0,0.00032383,2]
[421469895,1777738253000,-500.0,0.00032383,2]
[421469893,1777738253000,-500.0,0.00032383,2]
[421469894,1777738253000,-500.0,0.00032383,2]
[421469897,1777738253000,-500.0,0.00032383,2]
[421469898,1777738253000,-500.0,0.00032383,2]
[421469899,1777738253000,-500.0,0.00032383,2]
[421469901,1777738253000,-500.0,0.00032383,2]
[421469910,1777738253000,-500.0,0.00032383,2]
[421469921,1777738253000,-500.0,0.00032383,2]
[421469911,1777738253000,-500.0,0.00032383,2]
[421469906,1777738253000,-666.15,0.00032383,2]
[421469909,1777738253000,-500.0,0.00032383,2]
[421469905,1777738253000,-500.0,0.00032383,2]
[421469900,1777738253000,-724.96,0.00032383,2]
[421469908,1777738253000,-500.0,0.00032383,2]
[421469902,1777738253000,-812.98,0.00032383,2]
[421469907,1777738253000,-684.42,0.00032383,2]
[421469904,1777738253000,-658.51,0.00032383,2]
[421469912,1777738253000,-500.0,0.00032383,2]
[421469913,1777738253000,-800.92,0.00032383,2]
[421469916,1777738253000,-500.0,0.00032383,2]
[421469917,1777738253000,-500.0,0.00032383,2]
[421469903,1777738253000,-635.28,0.00032383,2]
[421469944,1777738253000,-500.0,0.00032383,2]
[421469952,1777738253000,-500.0,0.00032383,2]
[421469947,1777738253000,-500.0,0.00032383,2]
[421469980,1777738253000,-500.0,0.00032383,2]
[421469983,1777738253000,-500.0,0.00032383,2]
[421469985,1777738253000,-250.98240725,0.00032383,2]
[421469992,1777738253000,-151.0,0.00032383,7]
[421469990,1777738253000,-151.0,0.00032383,7]
[421469986,1777738253000,-500.0,0.00032383,2]
[421469984,1777738253000,-500.0,0.00032383,2]
[421469982,1777738253000,-1599.33,0.00032383,2]
[421469989,1777738253000,-500.0,0.00032383,2]
[421469993,1777738253000,-500.0,0.00032383,2]
[421469987,1777738253000,-500.0,0.00032383,2]
[421469991,1777738253000,-151.0,0.00032383,7]
[421469971,1777738253000,-433.53254089,0.00032383,2]
[421469994,1777738253000,-500.0,0.00032383,2]
[421470002,1777738253000,-153.07071186,0.00032383,2]
[421469997,1777738253000,-151.0,0.00032383,7]
[421469999,1777738253000,-603.63,0.00032383,2]
[421470005,1777738253000,-500.0,0.00032383,2]
[421469995,1777738253000,-902.13,0.00032383,2]
[421470001,1777738253000,-578.54,0.00032383,2]